Cogmind - Beta 15 @@@ ROGUE MODE // 2025.09.29 @ 18:08:29 Player: alj Result: Destroyed by G-34 Mercenary with Small Laser Performance ------------- Evolutions (1) 500 Regions Visited (4) 800 Robots Destroyed (29) 145 Value Destroyed (595) 595 Prototype IDs (0) 0 Alien Tech Used (0) 0 Bonus (-483) -483 TOTAL SCORE: 1557 Bonus ------- Friendly Fire -483 Cogmind --------- Core Integrity 0/400 Matter 198/300 Energy 100/100 System Corruption 0% Temperature Cool (6) Movement Core (350) Ox6 Location -9/Storage Parts ------- > --- POWER (1) -------- (None) > --- PROPULSION (4) --- (None) > --- UTILITY (2) ------ Large Storage Unit > --- WEAPON (2) ------- (None) > --- INVENTORY (15) --- Light Ion Engine Aluminum Leg Aluminum Leg Titanium Leg Titanium Leg Small Storage Unit Peak State ------------ > --- POWER ------------ Ion Engine > --- PROPULSION ------- Improved Aluminum Leg Improved Aluminum Leg Titanium Leg Titanium Leg > --- UTILITY ---------- Large Storage Unit ECM Suite > --- WEAPON ----------- Heavy EM Pulse Gun Rocket Launcher > --- INVENTORY -------- Light Treads Light Treads Aluminum Leg Aluminum Leg Small Storage Unit Small Laser Assault Rifle Assault Rifle [Rating: 17] Favorites ----------- Power Ion Engine Engine Ion Engine Propulsion Light Treads Treads Light Treads Leg Improved Aluminum Leg Utility Large Storage Unit Device ECM Suite Storage Large Storage Unit Weapon Small Laser Energy Gun Small Laser Ballistic Gun Assault Rifle Launcher Rocket Launcher Build | -11 -10 -10 -9 -9 ------- Run | Yrd Mat Min Mat Sto Slots Evolved 2 | . . . 2 . Power . | . . . . . Propulsion 2 | . . . 2 . Utility . | . . . . . Weapon . | . . . . . Parts Attached 19 | 6 . 3 10 . Power 1 | 1 . . . . Engine 1 | 1 . . . . Core . | . . . . . Reactor . | . . . . . Propulsion 10 | 2 . . 8 . Treads 2 | 2 . . . . Leg 8 | . . . 8 . Wheel . | . . . . . Hover . | . . . . . Flight . | . . . . . Utility 3 | 1 . 2 . . Device 1 | . . 1 . . Storage 2 | 1 . 1 . . Processor . | . . . . . Hackware . | . . . . . Protection . | . . . . . Artifact . | . . . . . Weapon 5 | 2 . 1 2 . Energy Gun 2 | 1 . . 1 . Energy Cannon . | . . . . . Ballistic Gun 2 | 1 . . 1 . Ballistic Cannon . | . . . . . Launcher 1 | . . 1 . . Special Weapon . | . . . . . Impact Weapon . | . . . . . Slashing Weapon . | . . . . . Piercing Weapon . | . . . . . Special Melee Weapon . | . . . . . Unidentified Prototypes . | . . . . . Parts Lost 11 | . . . 7 4 Power 1 | . . . 1 . Propulsion 4 | . . . 2 2 Utility 1 | . . . 1 . Weapon 5 | . . . 3 2 Highest Loss Streak 5 | . . . 5 3 To Critical Strikes . | . . . . . Average Backups 5 | 2 3 4 7 4 Power . | . . . . . Propulsion 3 | 1 2 2 4 4 Utility . | . . . . . Weapon 1 | . 1 1 2 . Tool/Special . | . . . . . Unused Backups 1 | . . . . 1 Power 1 | . . . . 1 Propulsion . | . . . . . Utility . | . . . . . Weapon . | . . . . . Tool/Special . | . . . . . Average Slot Usage (%) 79 | . 85 94 74 46 Engine 9 | . 14 14 8 . Treads 11 | . 28 28 1 . Leg 13 | . . . 25 15 Device 6 | . . 9 7 . Storage 13 | . 14 14 11 19 Energy Gun 10 | . 14 14 9 . Ballistic Gun 4 | . 14 1 3 11 Launcher 7 | . . 12 7 . Peak Build Rating 17 | 6 6 8 17 10 Average Rating 8 | 4 6 7 11 6 On Entrance 6 | . 6 6 8 10 Naked Turns . | . . . . . Heaviest Build 34 | 13 13 32 34 29 Greatest Support 60 | 40 40 40 60 30 Greatest Overweight (x) 8 | . . . 2 8 Average Overweight (x) . | . . . . 1 Largest Inventory Capacity 15 | 8 8 15 15 15 Average Capacity 13 | 6 8 12 15 15 Most Carried 10 | 5 3 5 10 6 Average Carried 5 | 2 3 4 7 4 Final Capacity 15 | 8 8 15 15 15 Final Carried 6 | 3 3 5 4 6 Class Distribution -------------------- 100% | Mutant Dominant Class ---------------- Mutant | -10/Materials Mutant | -10/Mines Mutant | -9/Materials Mutant | -9/Storage Resources | -11 -10 -10 -9 -9 ----------- Run | Yrd Mat Min Mat Sto Matter Collected 540 | 241 8 . 291 . Remotely . | . . . . . Salvage Created 714 | . 151 . 536 27 Parts 51 | . 10 . 37 4 Haulers Intercepted . | . . . . . Recyclers Shooed . | . . . . . Parts Field Recycled . | . . . . . Retrieved Matter . | . . . . . Parts Self-Destructed . | . . . . . Prevented . | . . . . . Kills | -11 -10 -10 -9 -9 ------- Run | Yrd Mat Min Mat Sto Combat Hostiles Destroyed 14 | . 1 . 13 . Guns 7 | . 1 . 6 . AOE 7 | . . . 7 . Classes Destroyed 10 | . 4 . 6 . Worker 3 | . 1 . 2 . Builder 4 | . . . 3 1 Recycler 2 | . 1 . 1 . Mechanic 1 | . . . 1 . Operator 2 | . . . 2 . Watcher 1 | . . . 1 . Swarmer 3 | . . . 3 . Grunt 9 | . 1 . 8 . Sentry 2 | . . . 2 . Federalist 2 | . 2 . . . Best Kill Streak 13 | . 3 . 13 1 Combat Bots Only 4 | . 1 . 4 . Max Kills in Single Turn 4 | . 4 . 4 1 Gunslinging . | . . . . . Exploded 2 | . . . 2 . Melee . | . . . . . Uniques/NPCs Destroyed . | . . . . . Combat | -11 -10 -10 -9 -9 -------- Run | Yrd Mat Min Mat Sto Hostile Shots Fired 162 | . 9 . 74 79 Missed 50 | . 4 . 22 24 Hits 112 | . 5 . 52 55 Projectile 112 | . 5 . 52 55 Critical Strikes 2 | . . . 2 . Damage Taken 1448 | . 76 . 789 583 Core 406 | . . . 93 313 Absorbed by Shields 21 | . . . . 21 Core Remaining (%) 100 | 100 . 100 . . Volleys Fired 60 | . 4 . 44 12 Largest 2 | . 2 . 2 2 Hottest 78 | . 60 . 78 40 Shots Fired 107 | . 8 . 82 17 Gun 94 | . 8 . 69 17 Cannon . | . . . . . Launcher 13 | . . . 13 . Special . | . . . . . Kinetic 57 | . 4 . 36 17 Thermal 34 | . 4 . 30 . Explosive 13 | . . . 13 . Electromagnetic 3 | . . . 3 . Robot Hit Streak 7 | . 4 . 7 3 Robot Miss Streak 4 | . 3 . 4 4 Penetration Max . | . . . . . Secondary Targets 1 | . . . 1 . Max Gunslinging Chain 1 | . . . 1 . Shots Hit Robots 62 | . 4 . 50 8 Core Hits 43 | 1 5 . 35 2 Critical Kills . | . . . . . Critical Parts Destroyed . | . . . . . Critical Strikes . | . . . . . Melee Attacks . | . . . . . Impact . | . . . . . Slashing . | . . . . . Piercing . | . . . . . Sneak Attacks . | . . . . . Combat Hostiles . | . . . . . Follow-up Attacks . | . . . . . Damage Inflicted 1983 | 5 432 . 1439 107 Guns 678 | . 21 . 555 102 Cannons . | . . . . . Explosions 1280 | . 411 . 869 . Melee . | . . . . . Ramming 25 | 5 . . 15 5 Kinetic 402 | . 10 . 290 102 Thermal 692 | . 422 . 270 . Explosive 822 | . . . 822 . Electromagnetic 42 | . . . 42 . Impact . | . . . . . Slashing . | . . . . . Piercing . | . . . . . Highest Corruption . | . . . . . Average Corruption . | . . . . . Corruption Purged . | . . . . . Corruption Blocked . | . . . . . Overload Shots . | . . . . . Overflow Damage 83 | . 51 . 32 . Projectiles . | . . . . . Explosions 83 | . 51 . 32 . Melee . | . . . . . Knockbacks . | . . . . . Impact . | . . . . . Kinetic . | . . . . . Secondary . | . . . . . Self-Inflicted Damage 146 | . 20 . 126 . Shots 4 | . 1 . 3 . Rammed 4 | 3 . 1 . . Targets Rammed 11 | 3 . 1 6 1 Kicked 7 | . . . 6 1 Crushed . | . . . . . Highest Temperature 54 | . 6 . 54 . Average Temperature 12 | . 6 . 13 . Received Heat Transfer 715 | . 30 . 369 316 Siege Activations . | . . . . . Martial Activations . | . . . . . Shielding Activations . | . . . . . Robots Disrupted . | . . . . . Combat Hostiles . | . . . . . Robots Corrupted . | . . . . . Combat Hostiles . | . . . . . Parts Fried . | . . . . . Impact Corruptions . | . . . . . Robots Melted . | . . . . . Combat Hostiles . | . . . . . Parts Melted 1 | . . . 1 . Heat Transferred 875 | . 325 . 550 . Parts Sabotaged . | . . . . . Parts Stolen . | . . . . . Parts Stripped . | . . . . . Power Chain Reactions 1 | . . . 1 . Alert | -11 -10 -10 -9 -9 ------- Run | Yrd Mat Min Mat Sto Maximum Alert Level 1 | . . . 1 . Low Security (%) 82 | 100 100 100 61 100 Level 1 17 | . . . 38 . Level 2 . | . . . . . Level 3 . | . . . . . Level 4 . | . . . . . Level 5 . | . . . . . High Security . | . . . . . Max Security . | . . . . . Peak Influence 305 | . 140 46 305 111 Initial 111 | . . 46 . 111 Average 59 | . 37 4 107 65 Influence Increases 677 | . 140 . 532 5 Destroy 0b10 Robot/C 280 | . 20 . 260 . Destroy 0b10 Robot/NC 65 | . 10 . 50 5 Destroy Leader 82 | . . . 82 . Disable Machine 90 | . 60 . 30 . Destroy Structure 145 | . 50 . 95 . Lose Combat Pursuer 15 | . . . 15 . Influence Decreases 671 | . 20 120 266 265 Entered New Map 229 | . . 74 . 155 Time Decay 332 | . 20 46 196 70 Lost Part 110 | . . . 70 40 Squads Dispatched 6 | . 1 . 4 1 Investigation . | . . . . . Extermination . | . . . . . Reinforcement 6 | . 1 . 4 1 Assault . | . . . . . Garrison . | . . . . . Intercept . | . . . . . Searches Triggered . | . . . . . Construction Impeded 2 | . . . 2 . Haulers Reinforced . | . . . . . Active Scanning Responses . | . . . . . Cargo Convoy Interrupts . | . . . . . Stealth | -11 -10 -10 -9 -9 --------- Run | Yrd Mat Min Mat Sto Distress Signals 3 | . 2 . 1 . Communications Jammed . | . . . . . Distress Signals . | . . . . . Times Spotted 26 | . 2 . 21 3 Peak Tracking Total 4 | . 3 . 4 2 Tactical Retreats 1 | . . . 1 . Traps | -11 -10 -10 -9 -9 ------- Run | Yrd Mat Min Mat Sto Traps Triggered 1 | . . . . 1 Indirectly . | . . . . . Trap Hack Attempts . | . . . . . Triggered . | . . . . . Disarmed . | . . . . . Reprogrammed . | . . . . . Reused . | . . . . . Traps Extracted . | . . . . . Installed . | . . . . . Triggered . | . . . . . Machines | -11 -10 -10 -9 -9 ---------- Run | Yrd Mat Min Mat Sto Machines Disabled 6 | . 4 . 2 . Max in Single Turn 4 | . 4 . 1 . Machines Repaired . | . . . . . Machines Dismantled . | . . . . . Machines Sabotaged . | . . . . . Overloaded Fab Kills . | . . . . . Hacking | -11 -10 -10 -9 -9 --------- Run | Yrd Mat Min Mat Sto Machines Accessed 1 | . . . 1 . Terminals . | . . . . . Fabricators . | . . . . . Repair Stations . | . . . . . Recycling Units . | . . . . . Scanalyzers 1 | . . . 1 . Garrison Access . | . . . . . Total Hacks 2 | . . . 2 . Successful 2 | . . . 2 . Failed . | . . . . . Catastrophic . | . . . . . Database Lockouts . | . . . . . Manual . | . . . . . Terminals . | . . . . . Fabricators . | . . . . . Repair Stations . | . . . . . Recycling Units . | . . . . . Scanalyzers 2 | . . . 2 . Garrison Access . | . . . . . Terminal Hacks . | . . . . . Fabricator Hacks . | . . . . . Repair Station Hacks . | . . . . . Recycling Unit Hacks . | . . . . . Scanalyzer 2 | . . . 2 . Insert Component 1 | . . . 1 . Analyze 1 | . . . 1 . Garrison Access Hacks . | . . . . . Unauthorized Hacks . | . . . . . Terminals . | . . . . . Fabricators . | . . . . . Repair Stations . | . . . . . Recycling Units . | . . . . . Scanalyzers . | . . . . . Garrison Access . | . . . . . Data Cores Recovered . | . . . . . Used . | . . . . . Hacking Detections . | . . . . . Full Trace Events . | . . . . . Feedback Events . | . . . . . Feedback Blocked . | . . . . . Robot Schematics Acquired . | . . . . . Robots Built . | . . . . . Authchips . | . . . . . Time . | . . . . . Total Robot Build Rating . | . . . . . Part Schematics Acquired 1 | . . . 1 . Parts Built . | . . . . . Authchips . | . . . . . Time . | . . . . . Total Part Build Rating . | . . . . . Parts Repaired . | . . . . . Time . | . . . . . Parts Recycled . | . . . . . Recycled Matter . | . . . . . Retrieved Matter . | . . . . . Retrieved Components . | . . . . . Parts Scanalyzed 1 | . . . 1 . Part Schematics Acquired 1 | . . . 1 . Parts Damaged . | . . . . . Bothacking | -11 -10 -10 -9 -9 ------------ Run | Yrd Mat Min Mat Sto Used RIF Installer . | . . . . . Robots Hacked . | . . . . . Non-combat . | . . . . . Combat . | . . . . . Robot Hacks Applied . | . . . . . Relay Couplers Released . | . . . . . Fabnet Peak Effective % . | . . . . . Robots Rewired . | . . . . . Allies Hacked . | . . . . . Hacks Repelled . | . . . . . Allies | -11 -10 -10 -9 -9 -------- Run | Yrd Mat Min Mat Sto Total Allies 1 | . . 1 . . Largest Group 1 | . . 1 1 . Highest-Rated Group 31 | . . 31 31 . Highest-Rated Ally 31 | . . 31 31 . Total Orders . | . . . . . Ally Attacks . | . . . . . Total Damage . | . . . . . Kills . | . . . . . Allies Corrupted . | . . . . . Allies Melted . | . . . . . Intel | -11 -10 -10 -9 -9 ------- Run | Yrd Mat Min Mat Sto Active Infowar (turns) 920 | . . 355 565 . ECM 920 | . . 355 565 . Robot Analysis Total . | . . . . . Derelict Logs Recovered 2 | . . 2 . . Drone Launches . | . . . . . Drone Recoveries . | . . . . . Exploration | -11 -10 -10 -9 -9 ------------- Run | Yrd Mat Min Mat Sto Turns Passed 1728 | 141 123 521 801 142 Spaces Moved 929 | 82 70 323 392 62 Core 16 | 6 . . . 10 Treads 479 | 76 70 323 10 . Legs 434 | . . . 382 52 Wheels . | . . . . . Hover . | . . . . . Flight . | . . . . . Fastest Speed 50 | 50 160 160 120 120 Average Speed 155 | 151 160 160 149 162 Slowest Speed 350 | 160 160 160 260 350 Overloaded Moves . | . . . . . Propulsion Burnouts . | . . . . . Robots Hopped . | . . . . . Potential Cave-ins . | . . . . . Cave-ins Triggered . | . . . . . Exploration Rate (%) 26 | 7 20 54 37 13 Regions Visited 4 Branch Regions 2 Pre-discovered Areas . | . . . . . Known Exits Taken 1 | . . . 1 . Unknown Exits Taken 3 | 1 1 1 . . Scrap Searched . | . . . . . Spaces Dug . | . . . . . Terrain Destroyed 153 | . 60 . 93 . Melee . | . . . . . Projectile . | . . . . . AOE 153 | . 60 . 93 . Terrain Rammed . | . . . . . Walls Destroyed . | . . . . . Machines Disabled . | . . . . . Actions | -11 -10 -10 -9 -9 --------- Run | Yrd Mat Min Mat Sto Total 1101 | 95 73 326 520 87 Wait 59 | . . . 59 . Move 924 | 81 69 321 391 62 Hop . | . . . . . Pick Up 8 | 5 . . 2 1 Fast Attach 9 | 4 . 2 3 . Attach 8 | 2 . . 6 . Detach 5 | . . 1 3 1 Swap 5 | . . 1 4 . Drop 2 | . . . 2 . Fire 60 | . 4 . 44 12 Melee . | . . . . . Ram . | . . . . . Kick 7 | . . . 6 1 Crush 4 | 3 . 1 . . Escape Stasis 10 | . . . . 10 Rewire . | . . . . . Trap . | . . . . . Miscellaneous . | . . . . . Route ------- -11/Scrapyard -10/Materials -10/Mines (discovered 2 exits: *Mat x2) -9/Materials (discovered 4 exits: Mat x2 / *Sto x2) -9/Storage History --------- Turn | Location | Event 8 | -11/Scrapyard | Discovered new exit (range 16) 142 | -11/Scrapyard | Entered Materials 143 | -10/Materials | Met a group of wandering Federalists 205 | -10/Materials | Discovered new exit (range 12) 265 | -10/Materials | Entered Mines 279 | -10/Mines | Learned 2 Materials zone layouts 300 | -10/Mines | Received a Rocket Launcher from a helpful Derelict 329 | -10/Mines | Build established: Mutant 342 | -10/Mines | Met a Derelict bent on vengeance 378 | -10/Mines | Discovered new exit (range 9) 600 | -10/Mines | Learned Materials emergency access door positions 755 | -10/Mines | Discovered new exit (range 15) 766 | -10/Mines | Received a Mining Laser from a helpful Derelict 786 | -10/Mines | Entered Materials 786 | -9/Materials | Accompanied by 1 ally 786 | -9/Materials | Evolved 2 slots: Propulsion x2 787 | -9/Materials | Identified exit to Materials 787 | -9/Materials | Identified exit to Storage 1401 | -9/Materials | Lost 5 parts (1p2n1u1w) 1575 | -9/Materials | Discovered exit to Storage (range 8) 1587 | -9/Materials | Entered Storage 1686 | -9/Storage | Core integrity fell below 50% 1709 | -9/Storage | Core integrity fell below 20% 1714 | -9/Storage | Lost 3 parts (2n1w) 1729 | -9/Storage | Destroyed by G-34 Mercenary with Small Laser Last Messages --------------- Assault Rifle destroyed. K-01 Serf collects debris. Carbon-fiber Leg destroyed. K-01 Serf collects debris. Triggered Stasis Trap. A bubble of rippling energy engulfs the area. Field strength at 85. Carbon-fiber Leg destroyed. Field strength at 76. Field strength at 67. Field strength at 61. Field strength at 55. Field strength at 49. Field strength at 40. Field strength at 31. Field strength at 25. Field strength at 16. Field strength at 7. Stasis field depleted. K-01 Serf collects debris. Map ----- +----------------------------------------------------+ | ????????????????????????????# #??????????? | | ????????????????????????????# +??????????? | | ????????????????????????????+ #??????????? | | ????????????????????????????# #??????????? | | ????????????????????????????# ##########?? | | ????????????????????????????# # #?? | | ????????????????????????????# # """ #?? | | ????????????????????????????# # """ #?? | | ????????????????????????????# # """ #?? | | ????????????????????????????# + #?? | | ????????????################# # """ #?? | | ??????????? # """ #?? | | ??????????? ^ + """ #?? | | ??????????? ^ # #?? | | ??????????????########### ^ ##########?? | | ????????????????????????# ^ #??????????? | | ??????????????????????### ^ % #??????????? | | ??????????????????????#""gg""" #? ??????? | | ??????????????????????#"T ^""" # !???????? | | ??????????????????????#"" a""" + ?????????? | | ??????????????????????### # ?????????? | | ???????????????????###### # ????????? | | ???????????????????# # "" #? ???????? | | ???????????????????# / G" ##?##??????? | | ???????????????????# # "" #?????????? | | ???????????????????# ??#@ #?????????? | | ???????????????????#????+ #?????????? | | ????????????????????????#### #?????????? | | ???????????????????????????? #?????????? | | ????????????????????????????##+###?????????? | | ?????????????????????????????? ????????????? | | ???????????????????????????????????????????? | | ???????????????????????????????????????????? | | ???????????????????????????????????????????? | | ???????????????????????????????????????????? | | ???????????????????????????????????????????? | | ???????????????????????????????????????????? | | ???????????????????????????????????????????? | | ???????????????????????????????????????????? | | ???????????????????????????????????????????? | | ???????????????????????????????????????????? | | ???????????????????????????????????????????? | | ???????????????????????????????????????????? | | ???????????????????????????????????????????? | | ???????????????????????????????????????????? | | ???????????????????????????????????????????? | | ???????????????????????????????????????????? | | ???????????????????????????????????????????? | | ???????????????????????????????????????????? | | ???????????????????????????????????????????? | +----------------------------------------------------+ Best States ------------- Heat Dissipation 28 Energy Generation 10 Energy Capacity 250 Matter Stores 300 Matter Capacity 300 Sight Range 16 Terrain Scan Density 10 ECM Strength 1 Evasion (%) 55 Recoil Reduction 2 Item Schematics ----------------- Aluminum Leg | -9/Materials | Scanalyzed Robot Schematics ------------------ None Fabricated ------------ Nothing Repaired ---------- Nothing Alien Tech Used ----------------- None Achievements -------------- Backstab Challenges ------------ None Game ------ Seed AdvancedAntimissileLoader Manual? 0 Play Time 00:10:30 Cumulative 1.0 hours Start 2025.09.28 @ 11:03:29 End 2025.09.29 @ 18:08:29 Sessions 1 Manual Loads 0 Difficulty Rogue Special Mode None Game No. 6 Rogue 6 Adventurer 0 Explorer 0 Win Type - Total 0 Types 0/0/0/0/0/0/0/0/0/0 Lore% 0 Gallery% 3 Achievement% 6 Wizard Run 0 Options --------- Layout 1 ASCII 0 Keyboard 0 Movement Arrows Keybinds 0 Fullscreen 1 Font 24/Smallcaps Map View 50x35 Zoom Use 24% Tactical HUD 0 Map Filters NONE Filters NONE Steam 1 RUN: 69e881da-f326-4523-a17f-f3f821e1aa22